[Event "World Junior Chess Championship U20 2022"]
[White "Porcu, Riccardo"]
[Black "Gov, Guy"]
[WhiteFideId "28536690"]
[BlackFideId "2820200"]
[WhiteElo "1759"]
[BlackElo "2121"]
[Result "0-1"]
[Round "03"]
[TimeControl "5400+30"]
[Date "2022.10.13"]
[WhiteClock "0:00:32"]
[BlackClock "0:06:20"]

1. e4 {[%clk 1:30:48]}  e5 {[%clk 1:30:37]} 2. Nc3 {[%clk 1:30:56]}  Nf6 {[%clk 1:30:59]} 3. f4 {[%clk 1:29:04]}  d5 {[%clk 1:31:23]} 4. fxe5 {[%clk 1:29:29]}  Nxe4 {[%clk 1:31:46]} 5. Nf3 {[%clk 1:29:43]}  Bc5 {[%clk 1:21:34]} 6. d4 {[%clk 1:30:08]}  Bb4 {[%clk 1:22:00]} 7. Bd2 {[%clk 1:30:34]}  Nxd2 {[%clk 1:22:00]} 8. Qxd2 {[%clk 1:30:58]}  Bf5 {[%clk 1:22:06]} 9. Bd3 {[%clk 1:26:10]}  Bxd3 {[%clk 1:18:55]} 10. Qxd3 {[%clk 1:26:34]}  O-O {[%clk 1:18:59]} 11. O-O-O {[%clk 1:20:36]}  Nc6 {[%clk 1:07:53]} 12. h4 {[%clk 1:10:12]}  Bxc3 {[%clk 0:47:51]} 13. bxc3 {[%clk 1:00:48]}  Qe7 {[%clk 0:32:32]} 14. Ng5 {[%clk 0:53:47]}  g6 {[%clk 0:32:57]} 15. Rdf1 {[%clk 0:33:39]}  Na5 {[%clk 0:27:42]} 16. Rf6 {[%clk 0:21:19]}  Nc4 {[%clk 0:28:11]} 17. Qh3 {[%clk 0:18:29]}  Qa3+ {[%clk 0:28:39]} 18. Kd1 {[%clk 0:18:40]}  Qxa2 {[%clk 0:28:12]} 19. h5 {[%clk 0:12:42]}  Qb1+ {[%clk 0:28:40]} 20. Ke2 {[%clk 0:12:58]}  Qxc2+ {[%clk 0:29:08]} 21. Kf1 {[%clk 0:08:58]}  Qc1+ {[%clk 0:23:41]} 22. Kf2 {[%clk 0:07:33]}  Qd2+ {[%clk 0:24:09]} 23. Kf1 {[%clk 0:06:28]}  Qxg5 {[%clk 0:13:34]} 24. hxg6 {[%clk 0:03:07]}  h5 {[%clk 0:14:02]} 25. gxf7+ {[%clk 0:01:46]}  Kg7 {[%clk 0:10:57]} 26. Qd3 {[%clk 0:00:31]}  Nd2+ {[%clk 0:08:00]} 27. Kg1 {[%clk 0:00:32]}  Ne4 {[%clk 0:07:38]} 28. Rf3 {[%clk 0:00:39]}  Rxf7 {[%clk 0:07:38]} 29. Rhh3 {[%clk 0:01:08]}  Rxf3 {[%clk 0:05:48]} 30. Qxf3 {[%clk 0:01:32]}  h4 {[%clk 0:06:13]} 31. c4 {[%clk 0:01:12]}  Rf8 {[%clk 0:06:37]} 32. Qa3 {[%clk 0:00:32]}  Ng3 {[%clk 0:06:20]} 0-1


[Site "http://www.chessbomb.com"]

[Event "World Junior Chess Championship U20 2022"]
[White "Carroll, Peter"]
[Black "De Ieso, Lorenzo"]
[WhiteFideId "2510243"]
[BlackFideId "2894101"]
[WhiteElo "2115"]
[BlackElo "1938"]
[Result "0-1"]
[Round "03"]
[TimeControl "5400+30"]
[Date "2022.10.13"]
[WhiteClock "0:39:35"]
[BlackClock "1:17:55"]

1. d4 {[%clk 0:00:00]}  Nf6 {[%clk 1:30:55]} 2. Nc3 {[%clk 1:27:46]}  d5 {[%clk 1:31:14]} 3. Bf4 {[%clk 1:28:10]}  a6 {[%clk 1:29:53]} 4. e3 {[%clk 1:28:31]}  Bf5 {[%clk 1:29:34]} 5. f3 {[%clk 1:28:50]}  h5 {[%clk 1:27:39]} 6. Bd3 {[%clk 1:29:16]}  Bxd3 {[%clk 1:27:39]} 7. Qxd3 {[%clk 1:29:44]}  e6 {[%clk 1:27:12]} 8. e4 {[%clk 1:29:23]}  c5 {[%clk 1:26:38]} 9. e5 {[%clk 1:16:42]}  Nfd7 {[%clk 1:27:01]} 10. Nge2 {[%clk 1:17:02]}  Nc6 {[%clk 1:27:04]} 11. O-O-O {[%clk 1:16:09]}  c4 {[%clk 1:25:27]} 12. Qe3 {[%clk 1:14:50]}  b5 {[%clk 1:23:49]} 13. Rhe1 {[%clk 0:52:34]}  Nb6 {[%clk 1:21:55]} 14. Bg5 {[%clk 0:49:47]}  Be7 {[%clk 1:21:58]} 15. f4 {[%clk 0:47:12]}  b4 {[%clk 1:21:44]} 16. Nb1 {[%clk 0:47:35]}  c3 {[%clk 1:18:37]} 17. bxc3 {[%clk 0:42:13]}  Nc4 {[%clk 1:18:58]} 18. Qg3 {[%clk 0:41:49]}  Qa5 {[%clk 1:18:29]} 19. cxb4 {[%clk 0:40:02]}  Nxb4 {[%clk 1:18:42]} 20. Nec3 {[%clk 0:40:14]}  Qxa2 {[%clk 1:17:55]} 21. Nxa2 {[%clk 0:39:35]}  Nxa2# {[%clk 1:17:55]} 0-1


[Site "http://www.chessbomb.com"]

[Event "World Junior Chess Championship U20 2022"]
[White "Djurovic, Peko"]
[Black "van der Merwe, Alexander"]
[WhiteFideId "16503902"]
[BlackFideId "14323842"]
[WhiteElo "2084"]
[BlackElo "1746"]
[Result "1-0"]
[Round "03"]
[TimeControl "5400+30"]
[Date "2022.10.13"]
[WhiteClock "0:08:50"]
[BlackClock "0:03:58"]

1. e4 {[%clk 1:30:57]}  c5 {[%clk 1:30:53]} 2. Nf3 {[%clk 1:31:19]}  d6 {[%clk 1:31:17]} 3. d4 {[%clk 1:31:40]}  cxd4 {[%clk 1:31:43]} 4. Nxd4 {[%clk 1:32:01]}  Nf6 {[%clk 1:32:07]} 5. Nc3 {[%clk 1:32:21]}  a6 {[%clk 1:32:30]} 6. h3 {[%clk 1:31:21]}  e5 {[%clk 1:32:41]} 7. Nde2 {[%clk 1:30:32]}  h5 {[%clk 1:33:04]} 8. g3 {[%clk 1:29:37]}  Nbd7 {[%clk 1:32:35]} 9. Bg2 {[%clk 1:29:43]}  b5 {[%clk 1:31:36]} 10. O-O {[%clk 1:27:06]}  Bb7 {[%clk 1:30:52]} 11. Be3 {[%clk 1:26:14]}  Be7 {[%clk 1:30:19]} 12. Nd5 {[%clk 1:08:11]}  Nxd5 {[%clk 1:28:02]} 13. exd5 {[%clk 1:08:39]}  Rc8 {[%clk 1:23:04]} 14. f4 {[%clk 1:02:04]}  Bf6 {[%clk 1:17:34]} 15. Nc3 {[%clk 0:56:10]}  h4 {[%clk 0:57:38]} 16. Ne4 {[%clk 0:48:57]}  Be7 {[%clk 0:56:48]} 17. g4 {[%clk 0:22:48]}  exf4 {[%clk 0:55:58]} 18. Bxf4 {[%clk 0:21:00]}  O-O {[%clk 0:46:29]} 19. Qd3 {[%clk 0:20:05]}  Nc5 {[%clk 0:40:59]} 20. Nxc5 {[%clk 0:19:32]}  Rxc5 {[%clk 0:41:07]} 21. c3 {[%clk 0:19:40]}  a5 {[%clk 0:27:39]} 22. Be3 {[%clk 0:17:56]}  Rc4 {[%clk 0:25:43]} 23. b3 {[%clk 0:18:08]}  Rc8 {[%clk 0:23:51]} 24. Qxb5 {[%clk 0:18:30]}  Qc7 {[%clk 0:18:00]} 25. Rac1 {[%clk 0:16:36]}  Ra8 {[%clk 0:17:13]} 26. Qd3 {[%clk 0:15:36]}  a4 {[%clk 0:16:05]} 27. b4 {[%clk 0:15:34]}  a3 {[%clk 0:12:26]} 28. c4 {[%clk 0:14:38]}  Qd7 {[%clk 0:10:16]} 29. Bd4 {[%clk 0:12:01]}  Bg5 {[%clk 0:10:16]} 30. Rce1 {[%clk 0:12:20]}  Rfc8 {[%clk 0:08:34]} 31. Rf5 {[%clk 0:10:06]}  f6 {[%clk 0:07:12]} 32. c5 {[%clk 0:09:02]}  Qa4 {[%clk 0:05:41]} 33. Rxg5 {[%clk 0:08:10]}  Re8 {[%clk 0:02:58]} 34. Rxe8+ {[%clk 0:07:44]}  Qxe8 {[%clk 0:03:26]} 35. Bxf6 {[%clk 0:07:50]}  Qe1+ {[%clk 0:03:19]} 36. Kh2 {[%clk 0:08:12]}  Qxb4 {[%clk 0:03:39]} 37. Rxg7+ {[%clk 0:08:35]}  Kf8 {[%clk 0:03:58]} 38. Bd4 {[%clk 0:08:50]} 1-0


[Site "http://www.chessbomb.com"]

[Event "World Junior Chess Championship U20 2022"]
[White "Monferrato, Rocco"]
[Black "Javornik, Nik"]
[WhiteFideId "3016536"]
[BlackFideId "14636549"]
[WhiteElo "1563"]
[BlackElo "2064"]
[Result "0-1"]
[Round "03"]
[TimeControl "5400+30"]
[Date "2022.10.13"]
[WhiteClock "0:09:05"]
[BlackClock "0:36:23"]

1. c4 {[%clk 1:30:54]}  Nf6 {[%clk 1:30:35]} 2. Nc3 {[%clk 1:31:14]}  g6 {[%clk 1:30:45]} 3. g3 {[%clk 1:31:27]}  Bg7 {[%clk 1:31:11]} 4. Bg2 {[%clk 1:31:54]}  d6 {[%clk 1:31:22]} 5. d4 {[%clk 1:31:44]}  O-O {[%clk 1:31:47]} 6. e4 {[%clk 1:31:11]}  e5 {[%clk 1:30:26]} 7. d5 {[%clk 1:28:46]}  a5 {[%clk 1:29:56]} 8. a4 {[%clk 1:25:59]}  Na6 {[%clk 1:28:41]} 9. Nge2 {[%clk 1:24:32]}  Nc5 {[%clk 1:26:54]} 10. Be3 {[%clk 1:23:09]}  b6 {[%clk 1:26:06]} 11. O-O {[%clk 1:21:52]}  Ng4 {[%clk 1:22:58]} 12. Bxc5 {[%clk 1:20:06]}  bxc5 {[%clk 1:23:24]} 13. Nb5 {[%clk 1:14:21]}  f5 {[%clk 1:17:32]} 14. h3 {[%clk 1:09:40]}  Nh6 {[%clk 1:17:07]} 15. Nec3 {[%clk 1:04:04]}  Rf7 {[%clk 1:10:20]} 16. Kh2 {[%clk 0:57:03]}  Bd7 {[%clk 1:01:25]} 17. f3 {[%clk 0:45:01]}  Kh8 {[%clk 0:53:46]} 18. Qc2 {[%clk 0:41:45]}  Ng8 {[%clk 0:52:24]} 19. Ne2 {[%clk 0:34:44]}  h5 {[%clk 0:50:28]} 20. h4 {[%clk 0:31:18]}  f4 {[%clk 0:50:06]} 21. Rh1 {[%clk 0:30:05]}  Bh6 {[%clk 0:46:38]} 22. gxf4 {[%clk 0:27:58]}  Bxf4+ {[%clk 0:41:16]} 23. Kg1 {[%clk 0:27:50]}  Be3+ {[%clk 0:40:42]} 24. Kf1 {[%clk 0:26:36]}  Qf8 {[%clk 0:38:50]} 25. Ng1 {[%clk 0:25:22]}  Bg4 {[%clk 0:34:00]} 26. Nxc7 {[%clk 0:16:53]}  Rxc7 {[%clk 0:34:07]} 27. Ke2 {[%clk 0:16:30]}  Bxg1 {[%clk 0:34:15]} 28. Raxg1 {[%clk 0:16:21]}  Rf7 {[%clk 0:34:05]} 29. Qd3 {[%clk 0:15:20]}  Bd7 {[%clk 0:34:27]} 30. Bh3 {[%clk 0:14:44]}  Bxh3 {[%clk 0:34:44]} 31. Rxh3 {[%clk 0:15:05]}  Kh7 {[%clk 0:34:44]} 32. Rhg3 {[%clk 0:14:03]}  Ne7 {[%clk 0:35:09]} 33. Qe3 {[%clk 0:13:04]}  Rf4 {[%clk 0:35:35]} 34. Qd2 {[%clk 0:12:17]}  Rb8 {[%clk 0:35:51]} 35. Rf1 {[%clk 0:09:44]}  Qf6 {[%clk 0:35:51]} 36. Qxa5 {[%clk 0:09:43]}  Rxe4+ {[%clk 0:35:36]} 37. fxe4 {[%clk 0:09:43]}  Rxb2+ {[%clk 0:36:02]} 38. Ke3 {[%clk 0:09:05]}  Qxf1 {[%clk 0:36:23]} 0-1


[Site "http://www.chessbomb.com"]

[Event "World Junior Chess Championship U20 2022"]
[White "Pennica, Andrea"]
[Black "Vivoli, Alessandro"]
[WhiteFideId "2816828"]
[BlackFideId "11800240"]
[WhiteElo "2037"]
[BlackElo "1555"]
[Result "1-0"]
[Round "03"]
[TimeControl "5400+30"]
[Date "2022.10.13"]
[WhiteClock "0:40:27"]
[BlackClock "0:38:04"]

1. e4 {[%clk 1:26:54]}  e5 {[%clk 1:30:53]} 2. Nf3 {[%clk 1:27:20]}  Nc6 {[%clk 1:31:16]} 3. Bc4 {[%clk 1:27:46]}  Bc5 {[%clk 1:31:34]} 4. O-O {[%clk 1:28:09]}  Nf6 {[%clk 1:31:39]} 5. d4 {[%clk 1:28:33]}  exd4 {[%clk 1:31:11]} 6. e5 {[%clk 1:28:48]}  d5 {[%clk 1:31:02]} 7. exf6 {[%clk 1:29:07]}  dxc4 {[%clk 1:31:22]} 8. fxg7 {[%clk 1:29:15]}  Rg8 {[%clk 1:31:19]} 9. Re1+ {[%clk 1:29:40]}  Be6 {[%clk 1:30:42]} 10. Bg5 {[%clk 1:29:56]}  Be7 {[%clk 1:21:29]} 11. Bxe7 {[%clk 1:27:21]}  Qxe7 {[%clk 1:21:05]} 12. Nxd4 {[%clk 1:24:42]}  Rd8 {[%clk 1:19:37]} 13. c3 {[%clk 1:24:37]}  Qf6 {[%clk 1:18:20]} 14. Qa4 {[%clk 1:20:01]}  Rxd4 {[%clk 1:13:08]} 15. cxd4 {[%clk 1:20:15]}  Qxd4 {[%clk 1:13:28]} 16. Nc3 {[%clk 1:19:11]}  Qxg7 {[%clk 1:12:25]} 17. g3 {[%clk 1:19:34]}  Kd8 {[%clk 1:10:23]} 18. Rad1+ {[%clk 1:05:54]}  Kc8 {[%clk 1:10:33]} 19. Nd5 {[%clk 1:02:23]}  Kb8 {[%clk 0:58:44]} 20. Qxc4 {[%clk 0:58:43]}  Rd8 {[%clk 0:54:33]} 21. Qc3 {[%clk 0:56:02]}  Qg5 {[%clk 0:49:34]} 22. h4 {[%clk 0:49:44]}  Qh6 {[%clk 0:47:18]} 23. Nb4 {[%clk 0:46:09]}  Rg8 {[%clk 0:44:51]} 24. Nxc6+ {[%clk 0:42:29]}  bxc6 {[%clk 0:45:01]} 25. Qxc6 {[%clk 0:39:46]}  Qxh4 {[%clk 0:42:07]} 26. Rd3 {[%clk 0:39:31]}  Qg5 {[%clk 0:38:18]} 27. Rxe6 {[%clk 0:39:41]}  fxe6 {[%clk 0:37:34]} 28. Rb3+ {[%clk 0:40:04]}  Kc8 {[%clk 0:37:45]} 29. Qxe6+ {[%clk 0:40:27]}  Kd8 {[%clk 0:38:04]} 30. Rb8# {[%clk 0:40:27]} 1-0


[Site "http://www.chessbomb.com"]

[Event "World Junior Chess Championship U20 2022"]
[White "Abdulla, Younes Alkhemeiri"]
[Black "Candian, Lorenzo"]
[WhiteFideId "9324577"]
[BlackFideId "2863664"]
[WhiteElo "1405"]
[BlackElo "2022"]
[Result "0-1"]
[Round "03"]
[TimeControl "5400+30"]
[Date "2022.10.13"]
[WhiteClock "0:56:54"]
[BlackClock "0:38:45"]

1. d4 {[%clk 1:30:58]}  Nf6 {[%clk 1:28:26]} 2. c4 {[%clk 1:31:10]}  c5 {[%clk 1:28:47]} 3. d5 {[%clk 1:31:10]}  e6 {[%clk 1:29:03]} 4. Nc3 {[%clk 1:31:30]}  exd5 {[%clk 1:29:16]} 5. cxd5 {[%clk 1:31:49]}  d6 {[%clk 1:29:39]} 6. e4 {[%clk 1:31:51]}  g6 {[%clk 1:30:04]} 7. Bb5+ {[%clk 1:31:40]}  Nbd7 {[%clk 1:30:25]} 8. Nf3 {[%clk 1:31:34]}  Bg7 {[%clk 1:30:40]} 9. O-O {[%clk 1:31:17]}  a6 {[%clk 1:29:47]} 10. Bxd7+ {[%clk 1:31:21]}  Nxd7 {[%clk 1:25:31]} 11. a4 {[%clk 1:31:21]}  O-O {[%clk 1:25:23]} 12. Bf4 {[%clk 1:29:55]}  Qc7 {[%clk 1:24:16]} 13. Re1 {[%clk 1:28:06]}  Re8 {[%clk 1:22:35]} 14. Qc1 {[%clk 1:27:34]}  Rb8 {[%clk 1:21:40]} 15. Bh6 {[%clk 1:26:53]}  Bh8 {[%clk 1:20:44]} 16. Qd2 {[%clk 1:15:59]}  c4 {[%clk 1:08:36]} 17. Rac1 {[%clk 1:07:08]}  Nc5 {[%clk 0:40:18]} 18. Rcd1 {[%clk 1:02:34]}  Bg4 {[%clk 0:39:38]} 19. h3 {[%clk 1:02:01]}  Bxf3 {[%clk 0:39:55]} 20. gxf3 {[%clk 1:02:25]}  Qd7 {[%clk 0:39:52]} 21. Kh2 {[%clk 1:01:59]}  Nd3 {[%clk 0:39:04]} 22. Rg1 {[%clk 1:00:54]}  b5 {[%clk 0:37:34]} 23. axb5 {[%clk 0:59:17]}  axb5 {[%clk 0:38:04]} 24. Ne2 {[%clk 0:59:06]}  Nxf2 {[%clk 0:37:47]} 25. Nf4 {[%clk 0:59:11]}  Nxd1 {[%clk 0:37:55]} 26. Rxd1 {[%clk 0:59:14]}  Be5 {[%clk 0:38:11]} 27. Rg1 {[%clk 0:58:26]}  b4 {[%clk 0:38:10]} 28. Kg2 {[%clk 0:57:19]}  c3 {[%clk 0:38:21]} 29. bxc3 {[%clk 0:56:54]}  bxc3 {[%clk 0:38:45]} 0-1


[Site "http://www.chessbomb.com"]

[Event "World Junior Chess Championship U20 2022"]
[White "Persico, Lorenzo"]
[Black "Ghaith, Saeed Alnuaimi"]
[WhiteFideId "899240"]
[BlackFideId "9309152"]
[WhiteElo "2007"]
[BlackElo "1269"]
[Result "1-0"]
[Round "03"]
[TimeControl "5400+30"]
[Date "2022.10.13"]
[WhiteClock "0:05:29"]
[BlackClock "1:07:35"]

1. e4 {[%clk 1:30:40]}  c6 {[%clk 1:26:16]} 2. d4 {[%clk 1:30:42]}  d5 {[%clk 1:26:18]} 3. e5 {[%clk 1:30:57]}  Bf5 {[%clk 1:26:43]} 4. h4 {[%clk 1:31:20]}  h5 {[%clk 1:27:10]} 5. Bg5 {[%clk 1:30:56]}  Qb6 {[%clk 1:27:33]} 6. Bd3 {[%clk 1:31:10]}  Bxd3 {[%clk 1:27:58]} 7. Qxd3 {[%clk 1:31:32]}  e6 {[%clk 1:28:25]} 8. Nd2 {[%clk 1:31:23]}  Nd7 {[%clk 1:28:34]} 9. Ne2 {[%clk 1:29:16]}  Nh6 {[%clk 1:28:50]} 10. O-O {[%clk 1:28:24]}  c5 {[%clk 1:28:49]} 11. c4 {[%clk 1:21:39]}  cxd4 {[%clk 1:28:18]} 12. cxd5 {[%clk 1:12:06]}  Nxe5 {[%clk 1:28:38]} 13. Qe4 {[%clk 1:08:06]}  f6 {[%clk 1:23:18]} 14. Bxh6 {[%clk 0:55:08]}  exd5 {[%clk 1:23:35]} 15. Qxd5 {[%clk 0:42:18]}  Rxh6 {[%clk 1:23:51]} 16. Nc4 {[%clk 0:25:21]}  Qc6 {[%clk 1:22:34]} 17. Qxc6+ {[%clk 0:21:00]}  bxc6 {[%clk 1:22:39]} 18. Rac1 {[%clk 0:18:53]}  Nxc4 {[%clk 1:19:51]} 19. Rxc4 {[%clk 0:19:02]}  c5 {[%clk 1:19:57]} 20. Nf4 {[%clk 0:18:24]}  Kd7 {[%clk 1:17:25]} 21. Nd3 {[%clk 0:18:29]}  Rc8 {[%clk 1:15:40]} 22. Rfc1 {[%clk 0:18:35]}  a5 {[%clk 1:08:28]} 23. Nxc5+ {[%clk 0:16:55]}  Bxc5 {[%clk 1:08:50]} 24. Rxc5 {[%clk 0:17:20]}  Rxc5 {[%clk 1:09:02]} 25. Rxc5 {[%clk 0:17:45]}  Kd6 {[%clk 1:08:27]} 26. Rxa5 {[%clk 0:18:06]}  Rh8 {[%clk 1:08:50]} 27. Ra3 {[%clk 0:08:38]}  Kd5 {[%clk 1:08:08]} 28. Rd3 {[%clk 0:07:22]}  Kc4 {[%clk 1:08:19]} 29. Rd2 {[%clk 0:07:28]}  Re8 {[%clk 1:07:29]} 30. Kf1 {[%clk 0:07:49]}  d3 {[%clk 1:06:57]} 31. f3 {[%clk 0:07:31]}  g5 {[%clk 1:07:08]} 32. hxg5 {[%clk 0:05:00]}  fxg5 {[%clk 1:07:37]} 33. Kf2 {[%clk 0:04:44]}  Ra8 {[%clk 1:07:03]} 34. Ke1 {[%clk 0:03:47]}  Rxa2 {[%clk 1:06:27]} 35. b3+ {[%clk 0:03:46]}  Kxb3 {[%clk 1:06:27]} 36. Rxa2 {[%clk 0:04:02]}  Kxa2 {[%clk 1:07:20]} 37. Kd2 {[%clk 0:04:25]}  Kb2 {[%clk 1:07:17]} 38. Kxd3 {[%clk 0:04:51]}  Kc1 {[%clk 1:07:31]} 39. Ke4 {[%clk 0:05:06]}  Kd2 {[%clk 1:07:35]} 40. Kf5 {[%clk 0:05:29]} 1-0


[Site "http://www.chessbomb.com"]

[Event "World Junior Chess Championship U20 2022"]
[White "Karsten, Jan"]
[Black "Ahmed, Younes Alkhemeiri"]
[WhiteFideId "14350653"]
[BlackFideId "9324585"]
[WhiteElo "1985"]
[BlackElo "1139"]
[Result "1-0"]
[Round "03"]
[TimeControl "5400+30"]
[Date "2022.10.13"]
[WhiteClock "0:29:04"]
[BlackClock "1:02:17"]

1. e4 {[%clk 1:30:57]}  e5 {[%clk 0:00:00]} 2. Nf3 {[%clk 1:31:22]}  Nc6 {[%clk 1:31:06]} 3. Bc4 {[%clk 1:31:48]}  Bc5 {[%clk 1:31:25]} 4. c3 {[%clk 1:32:14]}  Nf6 {[%clk 1:31:32]} 5. d3 {[%clk 1:32:39]}  O-O {[%clk 1:31:15]} 6. O-O {[%clk 1:33:03]}  d6 {[%clk 1:31:06]} 7. h3 {[%clk 1:32:44]}  h6 {[%clk 1:30:01]} 8. Re1 {[%clk 1:32:59]}  Re8 {[%clk 1:29:29]} 9. b4 {[%clk 1:31:48]}  Bb6 {[%clk 1:29:02]} 10. a4 {[%clk 1:32:00]}  a6 {[%clk 1:28:43]} 11. Nbd2 {[%clk 1:31:07]}  Bd7 {[%clk 1:27:20]} 12. Bb2 {[%clk 1:29:14]}  Ne7 {[%clk 1:25:27]} 13. Qb3 {[%clk 1:27:15]}  Rf8 {[%clk 1:24:34]} 14. d4 {[%clk 1:26:12]}  Ng6 {[%clk 1:24:14]} 15. Bf1 {[%clk 1:24:11]}  Be6 {[%clk 1:23:13]} 16. Qc2 {[%clk 1:21:15]}  Nf4 {[%clk 1:20:23]} 17. c4 {[%clk 1:08:52]}  exd4 {[%clk 1:20:23]} 18. Nxd4 {[%clk 1:06:43]}  c5 {[%clk 1:17:41]} 19. Nxe6 {[%clk 1:04:11]}  fxe6 {[%clk 1:15:56]} 20. e5 {[%clk 0:56:09]}  dxe5 {[%clk 1:13:47]} 21. Bxe5 {[%clk 0:55:57]}  Ng6 {[%clk 1:13:40]} 22. Qxg6 {[%clk 0:52:05]}  Qxd2 {[%clk 1:13:49]} 23. Rad1 {[%clk 0:41:41]}  Qg5 {[%clk 1:06:33]} 24. Qxg5 {[%clk 0:41:18]}  hxg5 {[%clk 1:06:44]} 25. Bd6 {[%clk 0:41:05]}  Rfe8 {[%clk 1:06:39]} 26. bxc5 {[%clk 0:40:46]}  Ba5 {[%clk 1:06:38]} 27. Re5 {[%clk 0:38:21]}  g4 {[%clk 1:05:56]} 28. hxg4 {[%clk 0:35:50]}  Nxg4 {[%clk 1:06:09]} 29. Rg5 {[%clk 0:35:47]}  Nf6 {[%clk 1:06:00]} 30. c6 {[%clk 0:31:47]}  b6 {[%clk 1:03:18]} 31. Be5 {[%clk 0:31:20]}  Kf7 {[%clk 1:02:17]} 32. Bd3 {[%clk 0:29:04]}  Kf8 {[%clk 1:02:17]} 1-0


[Site "http://www.chessbomb.com"]

[Event "World Junior Chess Championship U20 2022"]
[White "Salem, Muhsan Shuaib"]
[Black "Momin, Fayzan"]
[WhiteFideId "9325824"]
[BlackFideId "7805225"]
[WhiteElo "1227"]
[BlackElo "1974"]
[Result "0-1"]
[Round "03"]
[TimeControl "5400+30"]
[Date "2022.10.13"]
[WhiteClock "0:24:04"]
[BlackClock "1:28:03"]

1. d4 {[%clk 1:25:34]}  Nf6 {[%clk 1:30:57]} 2. c4 {[%clk 1:25:56]}  e6 {[%clk 1:31:17]} 3. Nf3 {[%clk 1:26:18]}  Bb4+ {[%clk 1:31:42]} 4. Bd2 {[%clk 1:26:37]}  Qe7 {[%clk 1:32:08]} 5. Nc3 {[%clk 1:26:31]}  O-O {[%clk 1:32:21]} 6. g3 {[%clk 1:25:38]}  b6 {[%clk 1:32:07]} 7. a3 {[%clk 1:24:57]}  Bxc3 {[%clk 1:32:29]} 8. Bxc3 {[%clk 1:25:18]}  Ne4 {[%clk 1:32:30]} 9. Qc2 {[%clk 1:23:41]}  Bb7 {[%clk 1:32:53]} 10. Bg2 {[%clk 1:23:36]}  Nxc3 {[%clk 1:32:53]} 11. Qxc3 {[%clk 1:23:50]}  d6 {[%clk 1:33:11]} 12. O-O {[%clk 1:23:40]}  Nd7 {[%clk 1:33:17]} 13. Rfd1 {[%clk 1:17:17]}  Nf6 {[%clk 1:32:36]} 14. Rac1 {[%clk 1:16:09]}  Rad8 {[%clk 1:32:35]} 15. e3 {[%clk 1:00:14]}  h6 {[%clk 1:31:05]} 16. b4 {[%clk 0:57:56]}  c5 {[%clk 1:30:54]} 17. b5 {[%clk 0:56:15]}  Bxf3 {[%clk 1:28:32]} 18. Bxf3 {[%clk 0:56:30]}  e5 {[%clk 1:28:59]} 19. Bc6 {[%clk 0:48:51]}  Qc7 {[%clk 1:28:51]} 20. d5 {[%clk 0:45:01]}  Ne4 {[%clk 1:29:01]} 21. Qc2 {[%clk 0:37:49]}  f5 {[%clk 1:29:03]} 22. Ra1 {[%clk 0:36:52]}  Ng5 {[%clk 1:29:15]} 23. Ra2 {[%clk 0:35:03]}  f4 {[%clk 1:29:37]} 24. e4 {[%clk 0:33:26]}  fxg3 {[%clk 1:28:14]} 25. hxg3 {[%clk 0:33:53]}  Nh3+ {[%clk 1:28:34]} 26. Kh1 {[%clk 0:32:59]}  Nxf2+ {[%clk 1:28:16]} 27. Kh2 {[%clk 0:32:13]}  Qf7 {[%clk 1:27:48]} 28. Qe2 {[%clk 0:24:57]}  Nxd1 {[%clk 1:27:58]} 29. Qxd1 {[%clk 0:25:17]}  Qf1 {[%clk 1:28:08]} 30. Qc2 {[%clk 0:24:04]}  Rf3 {[%clk 1:28:03]} 31. Qd1 {[%clk 0:24:04]} 0-1


[Site "http://www.chessbomb.com"]